bitfinex-derivatives/quotes_SOLF0:USTF0_20250426
["timestamp","ask_amount","ask_price","bid_price","bid_amount"]
[1745678554572,8.14358964,148.93,148.9,6.7135]
[1745678555472,14.85548964,148.94,148.9,6.7135]
[1745678555876,14.85548964,148.94,148.91,6.7132]
[1745678556173,8.14358964,148.94,148.91,6.7132]
[1745678557476,14.85558964,148.94,148.9,6.7136]
[1745678557671,8.14358964,148.93,148.89,32.38358964]
[1745678557874,8.14358964,148.92,148.89,24.24]
[1745678558377,8.14358964,148.9,148.86,24.24]
[1745678558575,8.14358964,148.88,148.84,32.38358964]
[1745678558775,8.14358964,148.89,148.85,8.14358964]
[1745678559077,8.14358964,148.88,148.84,32.38358964]
[1745678559477,8.14358964,148.88,148.85,6.7159]
[1745678560280,8.14358964,148.88,148.86,6.7155]
[1745678562287,8.14358964,148.88,148.87,6.7151]
[1745678562485,8.14358964,148.89,148.87,6.7151]
[1745678562784,1.16913877,148.97,148.88,8.14358964]
[1745678562988,8.14358964,148.94,148.9,8.14358964]
[1745678563188,8.14358964,148.93,148.89,8.14358964]
[1745678563390,14.85598964,148.93,148.9,6.7134]
[1745678564390,6.7129,148.92,148.84,26.3066]
[1745678564591,8.14358964,148.9,148.86,8.14358964]
[1745678564791,8.14358964,148.89,148.85,8.14358964]
[1745678565090,8.14358964,148.87,148.85,6.7158]
[1745678565286,8.14358964,148.88,148.85,6.7158]
[1745678565791,6.7143,148.89,148.85,6.7158]
[1745678569595,12.72483671,148.9,148.84,24.24]
[1745678569787,12.72483671,148.88,148.84,24.24]
[1745678570185,12.72483671,148.88,148.83,6.7167]
[1745678570394,12.72483671,148.88,148.81,24.24]
[1745678570995,6.7151,148.87,148.84,6.7164]
[1745678572194,6.7151,148.87,148.83,6.7167]
[1745678572890,6.7151,148.87,148.84,6.7163]
[1745678573094,19.43963671,148.88,148.84,6.7163]
[1745678573497,12.72483671,148.88,148.81,26.175]
[1745678573791,6.7145,148.89,148.81,26.175]
[1745678573996,6.7145,148.89,148.82,12.72483671]
[1745678574195,6.7145,148.89,148.86,6.7155]
[1745678574495,12.72483671,148.9,148.86,6.7155]
[1745678574698,30.9536,148.91,148.84,12.72483671]
[1745678574699,24.24,148.91,148.84,12.72483671]
[1745678574998,6.7137,148.9,148.86,6.7153]
[1745678575895,30.9534,148.91,148.87,6.7151]
[1745678577299,6.7137,148.9,148.87,6.7151]
[1745678578195,24.24,148.91,148.85,24.24]
[1745678578399,12.72483671,148.92,148.85,24.24]
[1745678578898,19.43793671,148.92,148.88,6.7144]
[1745678579199,12.72483671,148.92,148.85,24.24]
[1745678579399,6.7134,148.91,148.87,6.7148]
[1745678579599,12.72483671,148.92,148.85,24.24]
[1745678579903,6.7141,148.9,148.86,6.7154]
[1745678580601,6.7142,148.89,148.86,6.7154]
[1745678581798,6.7139,148.9,148.87,6.715]
[1745678583004,6.7139,148.9,148.86,6.7153]
[1745678583205,6.7143,148.89,148.86,6.7153]
[1745678583404,12.72483671,148.92,148.86,6.7153]
[1745678583703,6.7139,148.9,148.86,6.7153]
[1745678584208,6.7144,148.89,148.85,30.9558]
[1745678585705,36.96483671,148.94,148.86,12.72483671]
[1745678586106,36.96483671,148.94,148.86,14.72233671]
[1745678586504,6.7129,148.92,148.88,6.7144]
[1745678586902,1.9662,148.95,148.86,1.9975]
[1745678587206,1.9662,148.95,148.88,12.72483671]
[1745678587408,6.7119,148.94,148.91,6.7132]
[1745678588606,1.9662,148.95,148.92,6.7127]
[1745678588805,24.24,148.97,148.92,6.7127]
[1745678589207,30.9507,148.97,148.93,6.712]
[1745678589507,30.9507,148.97,148.9,12.72483671]
[1745678589508,24.24,148.97,148.9,12.72483671]
[1745678590407,24.24,148.97,148.93,6.7123]
[1745678590707,12.72483671,148.98,148.93,6.7123]
[1745678590903,6.7108,148.97,148.9,12.72483671]
[1745678591405,6.7108,148.97,148.93,6.7121]
[1745678592712,6.7108,148.97,148.92,6.7127]
[1745678593712,6.7108,148.97,148.93,6.7123]
[1745678594114,6.7111,148.96,148.9,12.72483671]
[1745678594913,6.7111,148.96,148.92,6.7126]
[1745678595211,6.7111,148.96,148.9,12.72483671]
[1745678595212,5.992,148.99,148.9,12.72483671]
[1745678595412,12.72483671,148.98,148.91,6.7131]
[1745678595612,8.13600593,148.95,148.91,14.84910593]
[1745678595914,14.84780593,148.95,148.91,14.84910593]
[1745678596313,8.13600593,148.95,148.92,6.7128]
[1745678596514,14.84720593,148.96,148.92,14.84880593]
[1745678597216,6.7115,148.95,148.92,14.84880593]
[1745678597913,14.84720593,148.96,148.92,14.84880593]
[1745678599817,6.7112,148.96,148.92,14.84880593]
[1745678604617,6.7115,148.95,148.92,6.7128]
[1745678604818,6.7115,148.95,148.91,14.84910593]
[1745678605118,6.7119,148.94,148.9,8.13600593]
[1745678605318,6.7119,148.94,148.91,8.13600593]
[1745678605616,6.7119,148.94,148.9,14.84940593]
[1745678605919,6.7125,148.93,148.9,14.84940593]
[1745678607914,6.7129,148.92,148.89,24.24]
[1745678608819,14.84860593,148.93,148.89,39.09010593]
[1745678609619,6.7128,148.92,148.89,39.09010593]
[1745678609915,6.7128,148.92,148.89,24.24]
[1745678610120,8.13600593,148.92,148.89,24.24]
[1745678610323,8.13600593,148.9,148.86,32.37600593]
[1745678610513,8.13600593,148.9,148.87,6.715]
[1745678611226,14.85000593,148.9,148.86,39.09130593]
[1745678611523,14.85000593,148.9,148.86,32.37600593]
[1745678612022,6.7143,148.89,148.86,24.24]
[1745678612223,14.85030593,148.89,148.86,24.24]
[1745678612415,8.13600593,148.89,148.86,24.24]
[1745678612623,14.85030593,148.89,148.86,24.24]
[1745678613823,8.13600593,148.89,148.86,30.9555]
[1745678614523,14.84990593,148.9,148.86,30.9555]
[1745678615226,8.13600593,148.91,148.88,6.7143]
[1745678615721,14.84930593,148.91,148.88,6.7143]
[1745678616025,14.84930593,148.91,148.87,6.7149]
[1745678616728,8.13600593,148.91,148.88,6.7146]
[1745678617625,14.84930593,148.91,148.88,6.7146]
[1745678617925,14.84930593,148.91,148.87,14.85090593]
[1745678618226,14.84930593,148.91,148.87,8.13600593]
[1745678618425,8.13600593,148.91,148.87,8.13600593]
[1745678618626,8.13600593,148.93,148.89,8.13600593]
[1745678618925,8.13600593,148.93,148.88,8.13600593]
[1745678619126,8.13600593,148.92,148.88,8.13600593]
[1745678619626,8.13600593,148.92,148.89,6.7139]
[1745678620925,14.84890593,148.92,148.89,6.7139]
[1745678621326,8.13600593,148.92,148.89,6.7139]
[1745678621821,6.7125,148.93,148.89,6.7139]
[1745678622125,8.13600593,148.93,148.89,8.13600593]
[1745678622522,14.84810593,148.94,148.9,8.13600593]
[1745678623727,14.84810593,148.94,148.9,14.84930593]
[1745678624123,8.13600593,148.93,148.9,6.7133]
[1745678628028,14.84840593,148.93,148.9,6.7133]
[1745678628223,8.13600593,148.91,148.87,10.22990593]
[1745678628823,8.13600593,148.91,148.88,6.7143]
[1745678629636,8.13600593,148.91,148.87,2.0939]
[1745678629637,8.13600593,148.9,148.87,6.7149]
[1745678630936,8.13600593,148.9,148.88,6.7145]
[1745678631139,8.13600593,148.91,148.88,6.7145]
[1745678632143,8.13600593,148.89,148.83,24.24]
[1745678632444,8.13600593,148.85,148.83,24.24]
[1745678632738,8.13600593,148.84,148.8,24.24]
[1745678632944,8.13600593,148.84,148.8,32.37600593]
[1745678633844,8.13600593,148.85,148.8,32.37600593]
[1745678634747,8.13600593,148.85,148.82,6.7173]
[1745678635046,14.85170593,148.86,148.82,6.7173]
[1745678637352,8.13600593,148.85,148.82,6.7173]
[1745678638347,8.13600593,148.85,148.83,6.7168]
[1745678639153,8.13600593,148.86,148.83,6.7168]
[1745678639956,8.13600593,148.85,148.81,8.13600593]
[1745678640950,14.85200593,148.85,148.81,14.85340593]
[1745678641455,8.13600593,148.85,148.82,6.7173]
[1745678641755,24.24,148.88,148.82,8.13600593]
[1745678641951,8.13600593,148.85,148.82,8.13600593]
[1745678643057,8.13600593,148.85,148.81,8.13600593]
[1745678643258,8.13600593,148.85,148.82,6.7172]
[1745678651265,8.13600593,148.85,148.82,14.85320593]
[1745678651468,8.13600593,148.85,148.83,6.7168]
[1745678651761,8.13600593,148.85,148.8,24.24]
[1745678651762,6.2519,148.91,148.84,8.13600593]
[1745678651966,2.1019,148.91,148.87,8.13600593]
[1745678652167,8.8153,148.91,148.88,8.13600593]
[1745678652661,39.08910593,148.92,148.88,14.85050593]
[1745678652965,14.84910593,148.92,148.88,14.85050593]
[1745678653968,14.84910593,148.92,148.88,8.13600593]
[1745678654263,8.13600593,148.93,148.89,8.13600593]
[1745678654465,8.13600593,148.93,148.9,6.7134]
[1745678654768,8.13600593,148.93,148.9,14.84940593]
[1745678655671,14.84830593,148.94,148.9,14.84940593]
[1745678656772,6.7123,148.94,148.91,8.13600593]
[1745678656967,14.84830593,148.94,148.9,6.7134]
[1745678658773,6.7125,148.93,148.9,6.7134]
[1745678659670,14.84850593,148.93,148.89,8.13600593]
[1745678660974,14.84810593,148.94,148.9,6.7134]
[1745678661175,6.7121,148.94,148.91,8.13600593]
[1745678661676,6.7121,148.94,148.91,14.84900593]
[1745678661976,41.14890593,148.95,148.91,14.84900593]
[1745678662774,6.712,148.94,148.91,14.84900593]
[1745678663679,14.84800593,148.94,148.91,14.84900593]
[1745678663979,14.84800593,148.94,148.91,6.713]
[1745678664177,6.7136,148.91,148.86,24.24]
[1745678664368,8.13600593,148.9,148.86,32.37600593]
[1745678664572,14.84980593,148.9,148.87,6.7148]
[1745678664872,8.13600593,148.9,148.86,24.24]
[1745678665376,8.13600593,148.9,148.86,32.37600593]
[1745678665582,14.84990593,148.9,148.87,6.7151]
[1745678665872,8.13600593,148.91,148.87,6.7151]
[1745678666377,8.13600593,148.93,148.88,8.13600593]
[1745678666677,8.13600593,148.93,148.89,8.13600593]
[1745678666879,26.3013,148.95,148.9,8.13600593]
[1745678667078,26.3013,148.95,148.86,24.24]
[1745678667079,34.43730593,148.95,148.91,8.13600593]
[1745678667277,10.19730593,148.95,148.91,8.13600593]
[1745678667478,16.90910593,148.95,148.91,14.84890593]
[1745678667979,16.90910593,148.95,148.92,6.7128]
[1745678668271,16.90910593,148.95,148.91,8.13600593]
[1745678668272,14.84820593,148.94,148.9,32.35600593]
[1745678668671,6.7122,148.94,148.91,8.13600593]
[1745678669376,6.7122,148.94,148.91,14.84900593]
[1745678671778,6.7122,148.94,148.91,8.13600593]
[1745678672077,14.84840593,148.93,148.9,24.22]
[1745678672679,14.84880593,148.92,148.9,24.22]
[1745678672975,8.13600593,148.93,148.88,8.13600593]
[1745678673279,6.7121,148.94,148.91,8.13600593]
[1745678673980,6.7121,148.94,148.91,14.84920593]
[1745678674779,6.7121,148.94,148.91,6.7132]
[1745678674979,8.13600593,148.92,148.88,8.13600593]
[1745678675178,8.13600593,148.89,148.87,24.22]
[1745678675379,8.13600593,148.89,148.87,30.9348]
[1745678675579,8.13600593,148.9,148.87,30.9348]
[1745678676280,14.84980593,148.9,148.87,30.9348]
[1745678676579,14.84980593,148.9,148.87,24.22]
[1745678676880,8.13600593,148.89,148.87,24.22]
[1745678677176,8.13600593,148.88,148.85,6.7159]
[1745678677683,14.85060593,148.88,148.85,6.7159]
[1745678678783,8.13600593,148.87,148.84,30.9363]
[1745678683185,8.13600593,148.87,148.84,24.22]
[1745678683386,8.13600593,148.85,148.84,24.22]
[1745678683589,8.13600593,148.85,148.81,32.35600593]
[1745678684588,8.13600593,148.85,148.81,39.07340593]
[1745678685089,8.13600593,148.85,148.81,32.35600593]
[1745678685289,8.13600593,148.85,148.82,6.717]
[1745678686789,8.13600593,148.85,148.83,6.7168]
[1745678687588,8.13600593,148.85,148.82,6.7171]
[1745678687788,8.13600593,148.85,148.81,24.22]
[1745678688490,8.13600593,148.85,148.83,6.7169]
[1745678689090,8.13600593,148.84,148.83,6.7169]
[1745678690488,8.13600593,148.86,148.82,8.13600593]
[1745678690788,8.13600593,148.88,148.83,8.13600593]
[1745678690989,8.13600593,148.87,148.83,8.13600593]
[1745678691189,8.13600593,148.87,148.82,8.13600593]
[1745678691788,8.13600593,148.86,148.84,6.7161]
[1745678691991,8.13600593,148.85,148.84,6.7161]
[1745678693590,8.13600593,148.86,148.85,6.716]
[1745678693989,8.13600593,148.86,148.82,8.13600593]
[1745678694188,8.13600593,148.86,148.84,6.7163]
[1745678700794,8.13600593,148.85,148.83,6.7168]
[1745678701093,8.13600593,148.86,148.82,8.13600593]
[1745678701596,8.13600593,148.87,148.82,8.13600593]
[1745678701997,8.13600593,148.87,148.84,6.7161]
[1745678703001,14.85120593,148.87,148.84,6.7161]
[1745678703504,8.13600593,148.87,148.84,6.7161]
[1745678704307,8.13600593,148.86,148.84,6.7161]
[1745678705414,8.13600593,148.86,148.83,6.7168]
[1745678708108,8.13600593,148.87,148.82,8.13600593]
[1745678708307,8.13600593,148.87,148.83,8.13600593]
[1745678708505,1.959,148.89,148.81,24.22]
[1745678708506,8.13600593,148.89,148.84,8.13600593]
[1745678708709,8.13600593,148.9,148.85,32.35600593]
[1745678708909,8.13600593,148.89,148.85,32.35600593]
[1745678709110,8.13600593,148.88,148.86,6.7154]
[1745678709412,8.13600593,148.87,148.85,24.22]
[1745678709715,8.13600593,148.87,148.85,30.936]
[1745678712315,8.13600593,148.88,148.85,30.936]
[1745678712618,8.13600593,148.88,148.86,6.7154]
[1745678713016,8.13600593,148.88,148.85,24.22]
[1745678713017,8.13600593,148.89,148.87,6.7151]
[1745678713715,8.13600593,148.89,148.86,6.7153]
[1745678714617,8.13600593,148.88,148.86,6.7153]
[1745678716417,8.13600593,148.87,148.85,24.22]
[1745678716819,8.13600593,148.88,148.86,6.7151]
[1745678719216,8.13600593,148.87,148.85,24.22]
[1745678719417,8.13600593,148.86,148.85,24.22]
[1745678719719,8.13600593,148.86,148.82,24.22]
[1745678719918,8.13600593,148.85,148.83,6.7168]
[1745678723018,8.13600593,148.85,148.82,24.22]
[1745678723223,8.13600593,148.83,148.79,26.1858]
[1745678723521,8.13600593,148.82,148.79,26.1858]
[1745678723723,8.13600593,148.83,148.8,6.7178]
[1745678724624,8.13600593,148.81,148.7,1.16955134]
[1745678724824,8.13600593,148.81,148.67,94.03949551]
[1745678724825,8.13600593,148.71,148.67,94.03949551]
[1745678725016,8.13600593,148.71,148.67,102.17550144]
[1745678725422,8.13600593,148.71,148.67,94.03949551]
[1745678725922,8.13600593,148.7,148.67,94.03949551]
[1745678726325,8.13600593,148.69,148.67,94.03949551]
[1745678726824,8.13600593,148.72,148.67,102.17550144]
[1745678727825,8.13600593,148.73,148.69,8.13600593]
[1745678728024,8.7599,148.74,148.69,8.13600593]
[1745678728025,10.17480593,148.74,148.69,8.13600593]
[1745678728325,8.13600593,148.73,148.69,8.13600593]
[1745678728525,8.13600593,148.72,148.67,94.03949551]
[1745678728725,8.13600593,148.71,148.67,94.03949551]
[1745678730429,8.13600593,148.7,148.67,94.03949551]
[1745678731630,8.13600593,148.71,148.67,94.03949551]
[1745678731827,8.13600593,148.71,148.67,102.17550144]
[1745678732028,8.13600593,148.71,148.67,94.03949551]
[1745678734631,8.13600593,148.71,148.67,100.76359551]
[1745678735632,14.85830593,148.71,148.67,102.17550144]
[1745678735930,8.13600593,148.71,148.67,102.17550144]
[1745678736631,8.13600593,148.71,148.67,108.89930144]
[1745678737132,8.13600593,148.71,148.68,69.41649701]
[1745678737933,8.13600593,148.71,148.68,62.69299701]
[1745678738831,8.13600593,148.7,148.68,62.69299701]
[1745678739833,14.85890593,148.7,148.68,62.69299701]
[1745678740933,14.85920593,148.69,148.68,62.69299701]
[1745678741432,6.7232,148.69,148.68,62.69299701]
[1745678741734,8.13600593,148.71,148.68,62.69299701]
[1745678742034,8.13600593,148.71,148.66,8.13600593]
[1745678742332,6.0145,148.74,148.65,32.35600593]
[1745678742333,8.13600593,148.7,148.65,32.35600593]
[1745678743035,8.13600593,148.7,148.66,6.7242]
[1745678743633,8.13600593,148.7,148.67,6.7238]
[1745678743827,8.13600593,148.73,148.68,8.13600593]
[1745678744432,8.13600593,148.73,148.68,14.85960593]
[1745678744733,8.13600593,148.72,148.68,14.85960593]
[1745678745033,14.85820593,148.72,148.67,14.85970593]
[1745678746533,6.7223,148.71,148.67,14.85970593]
[1745678747036,14.85800593,148.72,148.67,14.85970593]
[1745678747234,14.85800593,148.72,148.68,6.7236]
[1745678747733,14.85800593,148.72,148.68,14.85960593]
[1745678747932,8.13600593,148.72,148.69,6.7232]
[1745678748134,8.13600593,148.72,148.68,8.13600593]
[1745678748435,8.13600593,148.72,148.69,6.7231]
[1745678749031,14.85860593,148.71,148.65,24.22]
[1745678749236,8.13600593,148.69,148.65,24.22]
[1745678749638,8.13600593,148.69,148.65,30.9448]
[1745678750232,5.9163,148.74,148.65,24.22]
[1745678750233,14.86040593,148.67,148.65,24.22]
[1745678750538,8.13600593,148.66,148.65,24.22]
[1745678750732,14.86040593,148.67,148.65,24.22]
[1745678751129,8.13600593,148.66,148.62,14.86230593]
[1745678751333,8.13600593,148.66,148.62,39.10230593]
[1745678751829,8.13600593,148.66,148.63,6.7258]
[1745678752439,8.13600593,148.66,148.62,24.24]
[1745678752738,8.13600593,148.63,148.62,24.24]
[1745678753132,8.13600593,148.63,148.59,39.10330593]
[1745678753336,8.13600593,148.62,148.59,30.9673]
[1745678753738,6.7256,148.64,148.59,30.9673]
[1745678754135,12.76916181,148.65,148.59,30.9673]
[1745678754835,6.7258,148.64,148.59,30.9673]
[1745678755036,6.7258,148.64,148.6,6.7272]
[1745678755738,6.7258,148.64,148.59,30.9675]
[1745678756142,6.7258,148.64,148.59,24.24]
[1745678757142,6.7258,148.64,148.6,6.7271]
[1745678758742,6.7258,148.64,148.61,6.7268]
[1745678758942,12.76916181,148.65,148.59,24.24]
[1745678759643,6.7264,148.62,148.59,24.24]
[1745678760641,19.49516181,148.63,148.6,6.7272]
[1745678761340,19.49516181,148.63,148.59,30.9675]
[1745678761541,12.76916181,148.61,148.56,26.2285]
[1745678761839,12.76916181,148.61,148.56,24.24]
[1745678762040,19.49616181,148.61,148.57,6.7286]
[1745678764148,12.76916181,148.65,148.56,37.00916181]
[1745678764345,2.1097,148.66,148.58,12.76916181]
[1745678764646,37.00916181,148.67,148.6,12.76916181]
[1745678764843,37.00916181,148.67,148.61,24.24]
[1745678765348,6.7248,148.66,148.62,6.7261]
[1745678765947,6.7251,148.65,148.62,6.7261]
[1745678766148,37.00916181,148.67,148.61,24.24]
[1745678766446,12.76916181,148.69,148.61,24.24]
[1745678766647,12.76916181,148.69,148.63,6.7258]
[1745678766846,24.26,148.7,148.62,12.76916181]
[1745678767147,6.7229,148.7,148.64,12.76916181]
[1745678767349,6.7229,148.7,148.66,6.7243]
[1745678767546,37.02916181,148.73,148.65,24.26]
[1745678767741,12.76916181,148.71,148.65,24.26]
[1745678768447,12.76916181,148.69,148.62,24.24]
[1745678768945,6.7246,148.66,148.62,30.966]
[1745678769951,6.7243,148.67,148.62,30.966]
[1745678770952,6.7243,148.67,148.63,6.7259]
[1745678771151,12.76916181,148.69,148.62,24.24]
[1745678771352,12.76916181,148.69,148.64,6.725]
[1745678771551,19.49266181,148.69,148.64,6.725]
[1745678771752,19.49266181,148.69,148.62,24.24]
[1745678772353,12.76916181,148.69,148.65,6.7247]
[1745678772557,37.02916181,148.73,148.66,24.24]
[1745678773252,39.09866181,148.76,148.68,12.76916181]
[1745678773645,6.7212,148.74,148.7,6.7224]
[1745678773844,39.09866181,148.76,148.7,24.24]
[1745678774258,12.76916181,148.72,148.67,24.24]
[1745678775354,12.76916181,148.72,148.67,30.9639]
[1745678776258,6.7226,148.71,148.67,30.9639]
[1745678777059,6.7229,148.7,148.67,30.9639]
[1745678777253,12.76916181,148.72,148.67,30.9639]
[1745678777451,6.7225,148.71,148.68,6.7235]
[1745678777758,12.76916181,148.72,148.67,24.24]
[1745678778760,12.76916181,148.72,148.69,6.7231]
[1745678780059,19.49126181,148.72,148.68,6.7235]
[1745678780359,12.76916181,148.72,148.67,24.24]
[1745678781361,6.7226,148.71,148.68,6.7236]
[1745678781660,12.76916181,148.72,148.68,6.7236]
[1745678781855,19.49116181,148.72,148.68,6.7236]
[1745678782366,19.49116181,148.72,148.69,6.7231]
[1745678782660,12.76916181,148.74,148.67,24.24]
[1745678782863,12.76916181,148.74,148.69,6.7229]
[1745678783062,6.7215,148.73,148.69,6.7229]
[1745678783462,6.7215,148.73,148.7,6.7226]
[1745678783666,6.7209,148.75,148.67,24.24]
[1745678783964,6.7209,148.75,148.71,6.722]
[1745678784465,6.7209,148.75,148.72,6.7218]
[1745678786267,6.7209,148.75,148.71,6.7221]
[1745678787667,8.15966116,148.74,148.71,6.7221]
[1745678788667,14.88066116,148.74,148.7,14.88226116]
[1745678789068,8.15966116,148.74,148.7,14.88226116]
[1745678789266,8.15966116,148.73,148.7,6.7226]
[1745678790369,14.88126116,148.73,148.7,6.7226]
[1745678791567,32.39966116,148.72,148.58,1.17027895]
[1745678791871,8.15966116,148.65,148.6,8.15966116]
[1745678792069,8.15966116,148.65,148.61,8.15966116]
[1745678792269,14.88416116,148.67,148.62,8.15966116]
[1745678792772,8.15966116,148.67,148.62,8.15966116]
[1745678792967,14.88386116,148.67,148.63,8.15966116]
[1745678793168,8.15966116,148.67,148.63,8.15966116]
[1745678793468,14.88386116,148.67,148.63,8.15966116]
[1745678793669,6.7242,148.67,148.61,21.59542227]
[1745678795471,6.7242,148.67,148.62,6.7263]
[1745678796369,12.76072227,148.7,148.62,6.7263]
[1745678796569,6.7246,148.66,148.61,8.8347]
[1745678796766,6.7246,148.66,148.61,2.108]
[1745678796972,12.76072227,148.68,148.61,2.108]
[1745678797274,6.7244,148.67,148.62,6.7262]
[1745678798471,6.7244,148.67,148.63,6.7259]
[1745678798673,19.48452227,148.68,148.63,6.7259]
[1745678800272,19.48452227,148.68,148.64,6.7253]
[1745678800472,12.76072227,148.66,148.57,37.00072227]
[1745678800669,12.76072227,148.66,148.58,1.9191]
[1745678800969,12.76072227,148.66,148.6,6.727]
[1745678801676,6.7255,148.64,148.6,6.727]
[1745678801871,12.76072227,148.66,148.6,6.727]
[1745678802072,6.7251,148.65,148.6,6.727]
[1745678803072,6.7251,148.65,148.61,6.7267]
[1745678805174,6.7251,148.65,148.62,6.7264]
[1745678805675,19.48542227,148.66,148.62,6.7264]
[1745678805874,12.76072227,148.66,148.63,6.7258]
[1745678806074,24.24,148.67,148.63,6.7258]
[1745678806977,30.9644,148.67,148.63,6.7258]
[1745678807374,24.24,148.67,148.64,6.7253]
[1745678807672,12.76072227,148.68,148.61,24.24]
[1745678808068,1.9797,148.7,148.61,24.24]
[1745678808069,14.74042227,148.7,148.61,37.00072227]
[1745678808674,21.46352227,148.7,148.65,6.7246]
[1745678808875,14.74042227,148.7,148.65,6.7246]
[1745678810874,12.76072227,148.68,148.5,484.14]
[1745678811076,12.76072227,148.63,148.54,12.76072227]
[1745678811479,12.76072227,148.63,148.55,24.24]
[1745678811878,6.7266,148.62,148.57,6.7286]
[1745678813179,19.48672227,148.63,148.58,6.7281]
[1745678813376,12.76072227,148.65,148.56,12.76072227]
[1745678813575,12.76072227,148.63,148.56,12.76072227]
[1745678814080,12.76072227,148.65,148.56,12.76072227]
[1745678814473,19.48622227,148.65,148.57,1.9803]
[1745678815780,19.48622227,148.65,148.61,6.7267]
[1745678816781,6.7255,148.64,148.61,6.7267]
[1745678817881,19.48602227,148.65,148.61,6.7267]
[1745678818783,6.7255,148.64,148.61,6.7267]
[1745678820483,6.7255,148.64,148.6,30.9672]
[1745678821684,8.17117375,148.63,148.6,30.9672]
[1745678823580,8.17117375,148.63,148.61,6.7268]
[1745678823783,8.17117375,148.66,148.61,8.17117375]
[1745678823980,8.17117375,148.67,148.62,8.17117375]
[1745678824281,8.17117375,148.67,148.64,6.7253]
[1745678824980,8.17117375,148.68,148.65,6.7247]
[1745678825184,8.17117375,148.68,148.64,8.17117375]
[1745678825584,8.17117375,148.68,148.65,6.7246]
[1745678826387,14.89497375,148.68,148.64,39.13627375]
[1745678827986,28.2571,148.7,148.64,32.41117375]
[1745678828189,1.9396,148.72,148.66,8.17117375]
[1745678828490,8.17117375,148.71,148.68,6.7233]
[1745678828690,10.11077375,148.72,148.68,8.17117375]
[1745678828892,10.11077375,148.72,148.59,484.16]
[1745678828893,26.2964,148.74,148.69,8.17117375]
[1745678829081,8.17117375,148.73,148.69,8.17117375]
[1745678829286,8.17117375,148.73,148.7,8.17117375]
[1745678829593,10.22757375,148.74,148.7,8.17117375]
[1745678829888,10.22757375,148.74,148.71,6.722]
[1745678830591,10.22757375,148.74,148.7,14.89387375]
[1745678830884,16.94857375,148.74,148.7,14.89387375]
[1745678831589,8.7774,148.74,148.7,6.7227]
[1745678831794,2.0564,148.74,148.68,24.24]
[1745678831991,26.1593,148.77,148.69,12.7498974]
[1745678832387,8.639,148.77,148.72,6.7215]
[1745678832584,8.639,148.77,148.72,30.9615]
[1745678832788,1.9193,148.77,148.72,30.9615]
[1745678832993,1.9193,148.77,148.72,24.24]
[1745678833593,6.7206,148.75,148.72,24.24]
[1745678833794,6.7206,148.75,148.72,30.9618]
[1745678834887,1.9193,148.77,148.72,24.24]
[1745678835096,1.9193,148.77,148.73,6.7214]
[1745678835388,1.9282,148.78,148.72,24.24]
[1745678835592,8.6474,148.78,148.74,6.7207]
[1745678835794,1.9282,148.78,148.74,6.7207]
[1745678836396,14.6780974,148.78,148.72,24.24]
[1745678836896,6.7204,148.76,148.72,30.9616]
[1745678837497,6.7206,148.75,148.72,30.9616]
[1745678837696,12.7498974,148.76,148.72,24.24]
[1745678837896,12.7498974,148.74,148.69,24.24]
[1745678838396,12.7498974,148.76,148.7,6.7227]
[1745678838798,6.7215,148.73,148.7,6.7227]
[1745678839099,12.7498974,148.76,148.7,6.7227]
[1745678839397,6.7214,148.74,148.7,6.7227]
[1745678839594,6.7214,148.74,148.71,6.7223]
[1745678839798,6.7214,148.74,148.69,24.24]
[1745678840199,6.7214,148.74,148.7,6.7224]
[1745678841797,19.4701974,148.76,148.69,24.24]
[1745678841999,6.7203,148.76,148.69,36.9898974]
[1745678842497,6.7206,148.75,148.71,6.722]
[1745678843393,6.7202,148.76,148.69,36.9898974]
[1745678843599,1.9282,148.78,148.71,12.7498974]
[1745678843798,36.9898974,148.8,148.71,12.7498974]
[1745678844002,12.7498974,148.8,148.73,12.7498974]
[1745678844201,12.7498974,148.78,148.73,24.24]
[1745678844401,12.7498974,148.76,148.73,24.24]
[1745678844603,6.7209,148.75,148.71,6.722]
[1745678844803,1.9085,148.77,148.7,24.24]
[1745678846001,6.7202,148.76,148.7,24.24]